Cogmind - Beta 14 @@@ ROGUE MODE // 2024.08.17 @ 17:41:15 Player: KN-OKO Result: Destroyed by JS-MLQ(R) with Subdweller Beam Cannon Performance ------------- Evolutions (0) 0 Regions Visited (2) 400 Robots Destroyed (24) 120 Value Destroyed (423) 423 Prototype IDs (0) 0 Alien Tech Used (0) 0 Bonus (0) 0 TOTAL SCORE: 943 Bonus ------- None Cogmind --------- Core Integrity 0/250 Matter 199/300 Energy 239/250 System Corruption 0% Temperature Cool (9) Movement Rolling (95) Ox1 Location -10/Subcaves Parts ------- > --- POWER (1) -------- Ion Engine > --- PROPULSION (2) --- Wheel Wheel > --- UTILITY (2) ------ Large Storage Unit Structural Scanner > --- WEAPON (2) ------- Riot Gun Light Assault Rifle > --- INVENTORY (15) --- Ion Engine High-capacity Matter Pod (167) Medium Laser Beam Cannon Subdweller Machine Gun Subdweller Machine Gun Grenade Launcher Hammer Peak State ------------ > --- POWER ------------ Ion Engine > --- PROPULSION ------- Wheel Wheel > --- UTILITY ---------- Large Storage Unit Structural Scanner > --- WEAPON ----------- Riot Gun Light Assault Rifle > --- INVENTORY -------- Ion Engine High-capacity Matter Pod Medium Laser Beam Cannon Subdweller Machine Gun Subdweller Machine Gun Grenade Launcher Hammer [Rating: 10] Favorites ----------- Power Ion Engine Engine Ion Engine Propulsion Wheel Wheel Wheel Utility Large Storage Unit Device Seismic Detector Storage Large Storage Unit Protection Light Armor Plating Weapon Light Assault Rifle Energy Gun Medium Laser Ballistic Gun Light Assault Rifle Launcher Grenade Launcher Impact Weapon Hammer Build | -11 -10 -10 ------- Run | Yrd Mat Sub Slots Evolved . | . . . Power . | . . . Propulsion . | . . . Utility . | . . . Weapon . | . . . Parts Attached 28 | 6 9 13 Power 3 | 1 2 . Engine 3 | 1 2 . Core . | . . . Reactor . | . . . Propulsion 7 | 2 2 3 Treads . | . . . Leg . | . . . Wheel 7 | 2 2 3 Hover . | . . . Flight . | . . . Utility 9 | 2 2 5 Device 5 | 1 . 4 Storage 2 | 1 1 . Processor . | . . . Hackware . | . . . Protection 2 | . 1 1 Artifact . | . . . Weapon 9 | 1 3 5 Energy Gun 3 | . . 3 Energy Cannon . | . . . Ballistic Gun 4 | 1 2 1 Ballistic Cannon . | . . . Launcher 1 | . . 1 Special Weapon . | . . . Impact Weapon 1 | . 1 . Slashing Weapon . | . . . Piercing Weapon . | . . . Special Melee Weapon . | . . . Unidentified Prototypes . | . . . Parts Lost 8 | . 1 7 Power 1 | . 1 . Propulsion 3 | . . 3 Utility 2 | . . 2 Weapon 2 | . . 2 Highest Loss Streak 5 | . 1 5 To Critical Strikes 1 | . . 1 Average Slot Usage (%) 98 | . 99 98 Engine 14 | . 14 14 Wheel 27 | . 28 26 Device 9 | . 7 12 Storage 14 | . 14 14 Protection 4 | . 6 1 Energy Gun 3 | . . 10 Ballistic Gun 23 | . 27 16 Peak Build Rating 10 | 6 8 10 Average Rating 7 | 4 7 7 On Entrance 4 | . 6 8 Naked Turns . | . . . Heaviest Build 31 | 10 31 30 Greatest Support 26 | 20 26 26 Greatest Overweight (x) 2 | . 1 2 Average Overweight (x) . | . . 1 Largest Inventory Capacity 15 | 8 15 15 Average Capacity 12 | 7 12 15 Most Carried 13 | 6 13 12 Average Carried 8 | 3 9 9 Final Capacity 15 | 8 15 15 Final Carried 12 | 6 12 8 Class Distribution -------------------- 70% | Mutant 29% | Scavenger-Mutant Dominant Class ---------------- Mutant | -10/Materials Scavenger-Mutant | -10/Subcaves Resources | -11 -10 -10 ----------- Run | Yrd Mat Sub Matter Collected 768 | 280 402 86 Remotely . | . . . Salvage Created 718 | 102 517 99 Parts 57 | 7 39 11 Haulers Intercepted 1 | . 1 . Recyclers Shooed 1 | . 1 . Parts Field Recycled . | . . . Retrieved Matter . | . . . Parts Self-Destructed . | . . . Prevented . | . . . Kills | -11 -10 -10 ------- Run | Yrd Mat Sub Combat Hostiles Destroyed 17 | . 13 4 Guns 15 | . 13 2 AOE 2 | . . 2 Classes Destroyed 7 | 2 4 1 Worker 1 | . 1 . Tunneler 3 | 2 1 . Hauler 1 | . 1 . Recycler 2 | 1 1 . Swarmer 9 | . 9 . Grunt 6 | . 4 2 Subdweller 2 | . . 2 Best Kill Streak 4 | 3 4 2 Combat Bots Only 4 | . 4 2 Max Kills in Single Turn 1 | 1 1 1 Gunslinging . | . . . Exploded 1 | . . 1 Melee . | . . . Uniques/NPCs Destroyed . | . . . Combat | -11 -10 -10 -------- Run | Yrd Mat Sub Hostile Shots Fired 94 | . 54 40 Missed 22 | . 14 8 Damage Taken 1042 | . 344 698 Core 255 | . 82 173 Absorbed by Shields . | . . . Core Remaining (%) 100 | 100 . . Volleys Fired 80 | 20 39 21 Largest 2 | 1 2 2 Hottest 70 | 20 40 70 Shots Fired 134 | 20 77 37 Gun 129 | 20 77 32 Cannon . | . . . Launcher 5 | . . 5 Special . | . . . Kinetic 118 | 20 77 21 Thermal 10 | . . 10 Explosive 5 | . . 5 Electromagnetic 1 | . . 1 Robot Hit Streak 15 | 8 7 15 Robot Miss Streak 4 | 2 4 2 Penetration Max . | . . . Secondary Targets 4 | . 3 1 Max Gunslinging Chain 1 | . 1 1 Shots Hit Robots 90 | 14 46 30 Core Hits 41 | 6 26 9 Critical Kills . | . . . Critical Parts Destroyed . | . . . Critical Strikes 2 | . . 2 Burn 2 | . . 2 Melee Attacks 1 | . 1 . Impact 1 | . 1 . Slashing . | . . . Piercing . | . . . Sneak Attacks . | . . . Combat Hostiles . | . . . Follow-up Attacks . | . . . Damage Inflicted 1200 | 114 489 597 Guns 890 | 114 489 287 Cannons . | . . . Explosions 310 | . . 310 Melee . | . . . Ramming . | . . . Kinetic 791 | 114 489 188 Thermal 88 | . . 88 Explosive 310 | . . 310 Electromagnetic 11 | . . 11 Impact . | . . . Slashing . | . . . Piercing . | . . . Highest Corruption . | . . . Average Corruption . | . . . Corruption Purged . | . . . Corruption Blocked . | . . . Overload Shots . | . . . Overflow Damage . | . . . Projectiles . | . . . Explosions . | . . . Melee . | . . . Knockbacks . | . . . Impact . | . . . Kinetic . | . . . Secondary . | . . . Self-Inflicted Damage . | . . . Shots . | . . . Rammed . | . . . Targets Rammed . | . . . Kicked . | . . . Crushed . | . . . Highest Temperature 12 | . 12 4 Average Temperature 5 | . 5 4 Received Heat Transfer 102 | . 54 48 Siege Activations . | . . . Robots Corrupted . | . . . Combat Hostiles . | . . . Parts Fried . | . . . Impact Corruptions . | . . . Robots Melted . | . . . Combat Hostiles . | . . . Parts Melted . | . . . Heat Transferred 407 | . . 407 Parts Sabotaged . | . . . Parts Stolen . | . . . Parts Stripped . | . . . Power Chain Reactions . | . . . Alert | -11 -10 -10 ------- Run | Yrd Mat Sub Peak Influence 358 | 15 358 . Initial 9 | . 9 . Average 178 | 4 205 . Maximum Alert Level 1 | . 1 . Low Security (%) 39 | 100 29 . Level 1 60 | . 70 . Level 2 . | . . . Level 3 . | . . . Level 4 . | . . . Level 5 . | . . . High Security . | . . . Max Security . | . . . Squads Dispatched 3 | . 3 . Investigation 1 | . 1 . Extermination . | . . . Reinforcement 2 | . 2 . Assault . | . . . Garrison . | . . . Intercept . | . . . Searches Triggered . | . . . Construction Impeded . | . . . Haulers Reinforced . | . . . Active Scanning Responses . | . . . Cargo Convoy Interrupts . | . . . Stealth | -11 -10 -10 --------- Run | Yrd Mat Sub Distress Signals 1 | . 1 . Communications Jammed . | . . . Distress Signals . | . . . Times Spotted 25 | . 20 5 Peak Tracking Total 8 | . 8 2 Tactical Retreats 1 | . 1 . Traps | -11 -10 -10 ------- Run | Yrd Mat Sub Traps Triggered 2 | . 1 1 Indirectly . | . . . Trap Hack Attempts . | . . . Triggered . | . . . Disarmed . | . . . Reprogrammed . | . . . Reused . | . . . Traps Extracted . | . . . Installed . | . . . Triggered . | . . . Machines | -11 -10 -10 ---------- Run | Yrd Mat Sub Machines Disabled . | . . . Max in Single Turn . | . . . Machines Repaired . | . . . Machines Dismantled . | . . . Machines Sabotaged . | . . . Overloaded Fab Kills . | . . . Hacking | -11 -10 -10 --------- Run | Yrd Mat Sub Machines Accessed 5 | . 5 . Terminals 5 | . 5 . Fabricators . | . . . Repair Stations . | . . . Recycling Units . | . . . Scanalyzers . | . . . Garrison Access . | . . . Total Hacks 10 | . 10 . Successful 4 | . 4 . Failed 6 | . 6 . Catastrophic 1 | . 1 . Database Lockouts . | . . . Manual 9 | . 9 . Terminals 10 | . 10 . Fabricators . | . . . Repair Stations . | . . . Recycling Units . | . . . Scanalyzers . | . . . Garrison Access . | . . . Terminal Hacks 4 | . 4 . Part Schematic 1 | . 1 . Zone Layout 3 | . 3 . Fabricator Hacks . | . . . Repair Station Hacks . | . . . Recycling Unit Hacks . | . . . Scanalyzer . | . . . Garrison Access Hacks . | . . . Unauthorized Hacks . | . . . Terminals . | . . . Fabricators . | . . . Repair Stations . | . . . Recycling Units . | . . . Scanalyzers . | . . . Garrison Access . | . . . Data Cores Recovered . | . . . Used . | . . . Hacking Detections 3 | . 3 . Full Trace Events . | . . . Feedback Events . | . . . Feedback Blocked . | . . . Robot Schematics Acquired . | . . . Robots Built . | . . . Authchips . | . . . Time . | . . . Total Robot Build Rating . | . . . Part Schematics Acquired 1 | . 1 . Parts Built . | . . . Authchips . | . . . Time . | . . . Total Part Build Rating . | . . . Parts Repaired . | . . . Time . | . . . Parts Recycled . | . . . Recycled Matter . | . . . Retrieved Matter . | . . . Retrieved Components . | . . . Parts Scanalyzed . | . . . Part Schematics Acquired . | . . . Parts Damaged . | . . . Bothacking | -11 -10 -10 ------------ Run | Yrd Mat Sub Used RIF Installer . | . . . Robots Hacked . | . . . Non-combat . | . . . Combat . | . . . Robot Hacks Applied . | . . . Relay Couplers Released . | . . . Fabnet Peak Effective % . | . . . Robots Rewired . | . . . Allies Hacked . | . . . Hacks Repelled . | . . . Allies | -11 -10 -10 -------- Run | Yrd Mat Sub Total Allies . | . . . Largest Group . | . . . Highest-Rated Group . | . . . Highest-Rated Ally . | . . . Total Orders . | . . . Ally Attacks . | . . . Total Damage . | . . . Kills . | . . . Allies Corrupted . | . . . Allies Melted . | . . . Intel | -11 -10 -10 ------- Run | Yrd Mat Sub Robot Analysis Total . | . . . Derelict Logs Recovered 1 | . . 1 Drone Launches . | . . . Drone Recoveries . | . . . Exploration | -11 -10 -10 ------------- Run | Yrd Mat Sub Turns Passed 981 | 95 596 290 Spaces Moved 706 | 52 449 205 Core 5 | 5 . . Treads . | . . . Legs . | . . . Wheels 701 | 47 449 205 Hover . | . . . Flight . | . . . Fastest Speed 50 | 50 80 95 Average Speed 93 | 77 94 96 Slowest Speed 110 | 80 105 110 Overloaded Moves . | . . . Propulsion Burnouts . | . . . Robots Hopped . | . . . Cave-ins Triggered . | . . . Exploration Rate (%) 35 | 4 84 18 Regions Visited 2 Branch Regions 1 Pre-discovered Areas . | . . . Known Exits Taken . | . . . Unknown Exits Taken 2 | 1 1 . Scrap Searched . | . . . Spaces Dug 1 | . 1 . Terrain Destroyed 15 | . 1 14 Melee 1 | . 1 . Projectile . | . . . AOE 14 | . . 14 Terrain Rammed . | . . . Walls Destroyed . | . . . Machines Disabled . | . . . Actions | -11 -10 -10 --------- Run | Yrd Mat Sub Total 895 | 88 550 257 Wait 57 | 3 39 15 Move 704 | 51 448 205 Hop . | . . . Pick Up 19 | 7 9 3 Fast Attach 6 | 6 . . Attach 9 | . 2 7 Detach . | . . . Swap 13 | . 7 6 Drop 6 | 1 5 . Fire 80 | 20 39 21 Melee 1 | . 1 . Ram . | . . . Kick . | . . . Crush . | . . . Escape Stasis . | . . . Rewire . | . . . Trap . | . . . Miscellaneous . | . . . Route ------- -11/Scrapyard -10/Materials (discovered 6 exits: [*Mat x3] / [*Min x2] / [*Sub]) -10/Subcaves (discovered 1 exit: Mat) History --------- Turn | Location | Event 13 | -11/Scrapyard | Discovered new exit (range 14) 96 | -11/Scrapyard | Entered Materials 148 | -10/Materials | Discovered new exit (range 16) 206 | -10/Materials | Discovered new exit (range 12) 225 | -10/Materials | Discovered new exit (range 6) 314 | -10/Materials | Build established: Mutant 531 | -10/Materials | Discovered new exit (range 3) 587 | -10/Materials | Discovered new exit (range 5) 682 | -10/Materials | Discovered new exit (range 10) 692 | -10/Materials | Entered Subcaves 745 | -10/Subcaves | Core integrity fell below 50% 796 | -10/Subcaves | Lost 5 parts (2n1u2w) 826 | -10/Subcaves | Shifting Twisted Machinery released Riot Gun 923 | -10/Subcaves | Identified exit to Materials 933 | -10/Subcaves | Core integrity fell below 20% 982 | -10/Subcaves | Destroyed by JS-MLQ(R) with Subdweller Beam Cannon Last Messages --------------- 00778_ 5F-2TC(R) destroyed. 00782_ Acquired 48 matter. 00783_ Acquired 38 matter. 00785_ Acquired Sub. Machine Gun. 00786_ Subatomizers dissect the Disposable Heat Sink. 00787_ Acquired Sub. Machine Gun. Riot Gun falls loose from the Twisted Machinery. 00833_ Acquired Riot Gun. 00877_ G-47 Trooper destroyed. 00879_ G-34 Mercenary destroyed. 00881_ The unstable cave ceiling collapses. 00923_ Acquired derelict log, extracted data. Loading 1 Subcaves exit... 00932_ Triggered Piercing Trap. 00932_ Spikes shoot up from the floor. 00932_ Critical hit (Impale). 00932_ Wheel destroyed. 00932_ Critical hit (Impale). 00932_ Seismic Detector destroyed. Map ----- +----------------------------------------------------+ | ???????????#####?# ## ### | | ???????????######## #####?## # ## | | ???????????## ##### ####??????####### | | ???????????## ## #???????????????? | | ???????????## # # #???????????????? | | ??????????### ##???????????????? | | ??????????### ## #????????????????? | | ??????????## ##### #????????????????? | | ??????????## ######### #????????????????? | | ??????????### ##### ### ##????????????????? | | ???????????## ## ##?????????????????? | | ???????????## #####??????????????????? | | ???????????## ####??????????????????? | | ??????????### ##### ####?????????????????? | | ??????????### ###### #####???????????????? | | ?????????### ##### ####???????????????? | | ?????????### ### ##???????????????? | | ?????###### ### ###???????????????? | | ?????######" ## ###???????????????? | | ?????## #"" ###### ##???????????????? | | ?????## ###### ##???????????????? | | ?????## ###### ## ##???????????????? | | ?????## #" #### ## ##???????????????? | | ?????### ## ### ##???????????????? | | # ""##" # ##???????????????? | | " """" ## #### R @ ##???????????????? | | " " ## ##### ### ##???????????????? | | """" " ### ### ##### ##???????????????? | | """" #### #### ###??????????????? | | ############ #??? ##??????????????? | | ??######??### ##??? ###??????????????? | | ??????????### ##???? ###??????????????? | | ???????????## ### ??????? ###???????????????? | | ???????????## ##### ??????? ###???????????????? | | ???????????## ##### ????????###????????????????? | | ????????????####?## ???????????????????????????? | | ????????????###??## ???????????????????????????? | | ????????????????????? ???????????????????????????? | | ?????????????????????????????????????????????????? | | ?????????????????????????????????????????????????? | | ?????????????????????????????????????????????????? | | ?????????????????????????????????????????????????? | | ?????????????????????????????????????????????????? | | ?????????????????????????????????????????????????? | | ?????????????????????????????????????????????????? | | ?????????????????????????????????????????????????? | | ?????????????????????????????????????????????????? | | ?????????????????????????????????????????????????? | | ?????????????????????????????????????????????????? | | ?????????????????????????????????????????????????? | +----------------------------------------------------+ Best States ------------- Heat Dissipation 25 Energy Generation 10 Energy Capacity 250 Matter Stores 300 Matter Capacity 300 Sight Range 16 Terrain Scan Density 10 Armor Coverage 150 Evasion (%) 44 Item Schematics ----------------- Hcp. Storage Unit | -10/Materials | Hacked Robot Schematics ------------------ None Fabricated ------------ Nothing Alien Tech Used ----------------- None Achievements -------------- None Challenges ------------ None Game ------ Seed LightHardcellLegs Manual? 0 Play Time 00:10:47 Cumulative 425.3 hours Start 2024.08.17 @ 17:32:49 End 2024.08.17 @ 17:41:15 Sessions 1 Manual Loads 0 Difficulty Rogue Special Mode None Game No. 296 Rogue 296 Adventurer 0 Explorer 0 Win Type - Total 38 Types 32/0/4/2/0/0/0/0/0 Lore% 65 Gallery% 83 Achievement% 71 Wizard Run 0 Options --------- Layout 1 ASCII 0 Keyboard 1 Movement Numpad Keybinds 0 Fullscreen 2 Font 32/SmallcapsGlow Map View 50x35 Zoom Use 0% Tactical HUD 1 Map Filters NONE Filters NONE Steam 1 RUN: fc22c0ca-1535-44c1-88bd-003b6a4dcb9a